[Event "Titled Tuesday Blitz May 24 Early 2022"]
[White "Lohani, Sujana"]
[Black "Meunier-Pion, Jean"]
[WhiteFideId "12311987"]
[BlackFideId "20685327"]
[WhiteElo "1691"]
[BlackElo "2124"]
[Result "0-1"]
[Round "05"]
[TimeControl "180+1"]
[Date "2022.05.25"]
[WhiteClock "0:00:01"]
[BlackClock "0:00:06"]

1. d4 {[%clk 0:03:00]}  d5 {[%clk 0:02:59]} 2. c4 {[%clk 0:02:59]}  c6 {[%clk 0:02:59]} 3. Nc3 {[%clk 0:02:55]}  Nf6 {[%clk 0:02:59]} 4. Nf3 {[%clk 0:02:55]}  a6 {[%clk 0:02:58]} 5. cxd5 {[%clk 0:02:53]}  cxd5 {[%clk 0:02:58]} 6. Bg5 {[%clk 0:02:49]}  Ne4 {[%clk 0:02:56]} 7. Nxe4 {[%clk 0:02:48]}  dxe4 {[%clk 0:02:57]} 8. Nd2 {[%clk 0:02:43]}  Qxd4 {[%clk 0:02:45]} 9. e3 {[%clk 0:02:43]}  Qxb2 {[%clk 0:02:39]} 10. Rc1 {[%clk 0:02:43]}  Nc6 {[%clk 0:02:37]} 11. Nc4 {[%clk 0:02:35]}  Qb4+ {[%clk 0:02:35]} 12. Nd2 {[%clk 0:02:27]}  g6 {[%clk 0:01:42]} 13. Bc4 {[%clk 0:02:14]}  Bg7 {[%clk 0:01:42]} 14. O-O {[%clk 0:02:03]}  O-O {[%clk 0:01:42]} 15. Nxe4 {[%clk 0:02:01]}  Rd8 {[%clk 0:01:11]} 16. Qf3 {[%clk 0:01:43]}  Ne5 {[%clk 0:01:10]} 17. Qe2 {[%clk 0:01:23]}  Nxc4 {[%clk 0:00:55]} 18. Rxc4 {[%clk 0:01:22]}  Qb5 {[%clk 0:00:47]} 19. Bxe7 {[%clk 0:01:19]}  Be6 {[%clk 0:00:47]} 20. Rc2 {[%clk 0:00:54]}  Qxe2 {[%clk 0:00:45]} 21. Rxe2 {[%clk 0:00:47]}  Rd7 {[%clk 0:00:45]} 22. Nf6+ {[%clk 0:00:29]}  Bxf6 {[%clk 0:00:44]} 23. Bxf6 {[%clk 0:00:28]}  Bc4 {[%clk 0:00:44]} 24. Rb2 {[%clk 0:00:22]}  Bxf1 {[%clk 0:00:44]} 25. Kxf1 {[%clk 0:00:21]}  Rc8 {[%clk 0:00:42]} 26. g4 {[%clk 0:00:19]}  h6 {[%clk 0:00:42]} 27. h4 {[%clk 0:00:18]}  Rc6 {[%clk 0:00:32]} 28. g5 {[%clk 0:00:17]}  Kh7 {[%clk 0:00:20]} 29. Kg2 {[%clk 0:00:13]}  Rc4 {[%clk 0:00:18]} 30. Kg3 {[%clk 0:00:13]}  h5 {[%clk 0:00:17]} 31. Kh3 {[%clk 0:00:12]}  Rd1 {[%clk 0:00:12]} 32. Bd4 {[%clk 0:00:12]}  Rc7 {[%clk 0:00:10]} 33. Kg2 {[%clk 0:00:12]}  Rdc1 {[%clk 0:00:09]} 34. Kf3 {[%clk 0:00:11]}  Kg8 {[%clk 0:00:09]} 35. a3 {[%clk 0:00:10]}  Kf8 {[%clk 0:00:09]} 36. Rb6 {[%clk 0:00:10]}  Ke8 {[%clk 0:00:09]} 37. Rd6 {[%clk 0:00:10]}  R1c6 {[%clk 0:00:09]} 38. Rd5 {[%clk 0:00:09]}  b5 {[%clk 0:00:09]} 39. Re5+ {[%clk 0:00:09]}  Re6 {[%clk 0:00:09]} 40. Rd5 {[%clk 0:00:08]}  Rc4 {[%clk 0:00:07]} 41. Bf6 {[%clk 0:00:08]}  Rc8 {[%clk 0:00:06]} 42. Rd4 {[%clk 0:00:07]}  a5 {[%clk 0:00:06]} 43. Rd5 {[%clk 0:00:06]}  Rb6 {[%clk 0:00:05]} 44. Re5+ {[%clk 0:00:05]}  Kf8 {[%clk 0:00:05]} 45. Be7+ {[%clk 0:00:05]}  Kg8 {[%clk 0:00:04]} 46. Bf6 {[%clk 0:00:05]}  b4 {[%clk 0:00:05]} 47. axb4 {[%clk 0:00:04]}  axb4 {[%clk 0:00:06]} 48. Re7 {[%clk 0:00:02]}  b3 {[%clk 0:00:06]} 49. Bb2 {[%clk 0:00:01]}  Rcb8 {[%clk 0:00:06]} 0-1


[Site "https://www.chess.com"]

[Event "Titled Tuesday Blitz May 24 Early 2022"]
[White "Makhnev, Denis"]
[Black "Derraugh, Geordie"]
[WhiteFideId "13707647"]
[BlackFideId "2603950"]
[WhiteElo "2844"]
[BlackElo "2471"]
[Result "1-0"]
[Round "05"]
[TimeControl "180+1"]
[Date "2022.05.25"]
[WhiteClock "0:00:05"]
[BlackClock "0:00:01"]

1. d4 {[%clk 0:03:00]}  Nf6 {[%clk 0:02:59]} 2. c4 {[%clk 0:03:00]}  e5 {[%clk 0:02:57]} 3. dxe5 {[%clk 0:03:00]}  Ng4 {[%clk 0:02:57]} 4. Nf3 {[%clk 0:03:00]}  Bc5 {[%clk 0:02:57]} 5. e3 {[%clk 0:02:59]}  Nc6 {[%clk 0:02:56]} 6. a3 {[%clk 0:02:59]}  a5 {[%clk 0:02:54]} 7. b3 {[%clk 0:02:48]}  Ngxe5 {[%clk 0:02:51]} 8. Nxe5 {[%clk 0:02:49]}  Nxe5 {[%clk 0:02:51]} 9. Bb2 {[%clk 0:02:50]}  d6 {[%clk 0:02:48]} 10. Be2 {[%clk 0:02:46]}  O-O {[%clk 0:02:41]} 11. O-O {[%clk 0:02:45]}  Bf5 {[%clk 0:02:36]} 12. Nc3 {[%clk 0:02:42]}  Re8 {[%clk 0:02:25]} 13. Qd2 {[%clk 0:02:38]}  Ng4 {[%clk 0:02:20]} 14. Nd5 {[%clk 0:01:14]}  c6 {[%clk 0:02:04]} 15. h3 {[%clk 0:01:02]}  Nxf2 {[%clk 0:01:31]} 16. Rxf2 {[%clk 0:00:46]}  cxd5 {[%clk 0:01:31]} 17. Qc3 {[%clk 0:00:46]}  Re5 {[%clk 0:01:13]} 18. Rxf5 {[%clk 0:00:42]}  Bxe3+ {[%clk 0:01:13]} 19. Kh1 {[%clk 0:00:41]}  d4 {[%clk 0:01:14]} 20. Qd3 {[%clk 0:00:41]}  Qb6 {[%clk 0:00:53]} 21. Raf1 {[%clk 0:00:37]}  f6 {[%clk 0:00:52]} 22. Bf3 {[%clk 0:00:30]}  Rae8 {[%clk 0:00:49]} 23. Bd5+ {[%clk 0:00:29]}  Kh8 {[%clk 0:00:49]} 24. R5f3 {[%clk 0:00:22]}  Qa6 {[%clk 0:00:42]} 25. Bxd4 {[%clk 0:00:13]}  Bxd4 {[%clk 0:00:19]} 26. Qxd4 {[%clk 0:00:13]}  b5 {[%clk 0:00:14]} 27. a4 {[%clk 0:00:08]}  bxc4 {[%clk 0:00:13]} 28. bxc4 {[%clk 0:00:09]}  Qc8 {[%clk 0:00:12]} 29. Rg3 {[%clk 0:00:08]}  h6 {[%clk 0:00:12]} 30. Kh2 {[%clk 0:00:08]}  Qd7 {[%clk 0:00:07]} 31. Qg4 {[%clk 0:00:08]}  Qc7 {[%clk 0:00:06]} 32. Qh4 {[%clk 0:00:07]}  Qd7 {[%clk 0:00:03]} 33. Rxf6 {[%clk 0:00:05]}  gxf6 {[%clk 0:00:01]} 34. Qxh6+ {[%clk 0:00:05]} 1-0


[Site "https://www.chess.com"]

[Event "Titled Tuesday Blitz May 24 Early 2022"]
[White "Manukyan, Artyom"]
[Black "Matinian, Nikita"]
[WhiteFideId "13305786"]
[BlackFideId "24129100"]
[WhiteElo "2555"]
[BlackElo "2717"]
[Result "0-1"]
[Round "05"]
[TimeControl "180+1"]
[Date "2022.05.25"]
[WhiteClock "0:00:06"]
[BlackClock "0:00:04"]

1. e4 {[%clk 0:03:00]}  c5 {[%clk 0:02:05]} 2. Nc3 {[%clk 0:03:00]}  Nc6 {[%clk 0:02:05]} 3. Bb5 {[%clk 0:02:59]}  Nd4 {[%clk 0:02:04]} 4. Nf3 {[%clk 0:02:59]}  e6 {[%clk 0:02:05]} 5. O-O {[%clk 0:02:59]}  a6 {[%clk 0:02:05]} 6. Bd3 {[%clk 0:02:59]}  Nc6 {[%clk 0:02:04]} 7. b3 {[%clk 0:02:59]}  Be7 {[%clk 0:02:01]} 8. Bb2 {[%clk 0:02:59]}  Nf6 {[%clk 0:02:01]} 9. Re1 {[%clk 0:02:53]}  d6 {[%clk 0:01:59]} 10. e5 {[%clk 0:02:53]}  Nxe5 {[%clk 0:01:59]} 11. Nxe5 {[%clk 0:02:54]}  dxe5 {[%clk 0:02:00]} 12. Rxe5 {[%clk 0:02:55]}  b5 {[%clk 0:02:00]} 13. Rg5 {[%clk 0:02:40]}  Kf8 {[%clk 0:01:46]} 14. Ne4 {[%clk 0:02:33]}  Bb7 {[%clk 0:01:42]} 15. Nxc5 {[%clk 0:02:27]}  Bd5 {[%clk 0:01:40]} 16. b4 {[%clk 0:02:13]}  h6 {[%clk 0:01:34]} 17. Rg3 {[%clk 0:02:10]}  h5 {[%clk 0:01:34]} 18. Qe2 {[%clk 0:01:53]}  h4 {[%clk 0:01:34]} 19. Rg5 {[%clk 0:01:53]}  h3 {[%clk 0:01:34]} 20. g3 {[%clk 0:01:48]}  Bc6 {[%clk 0:01:17]} 21. Re1 {[%clk 0:01:36]}  Bd5 {[%clk 0:01:07]} 22. a3 {[%clk 0:01:32]}  Rc8 {[%clk 0:01:07]} 23. Bd4 {[%clk 0:01:28]}  a5 {[%clk 0:00:59]} 24. c3 {[%clk 0:01:25]}  axb4 {[%clk 0:00:58]} 25. axb4 {[%clk 0:01:26]}  Qe8 {[%clk 0:00:56]} 26. Bxb5 {[%clk 0:01:24]}  Qd8 {[%clk 0:00:55]} 27. Ba6 {[%clk 0:00:59]}  Ra8 {[%clk 0:00:54]} 28. Bd3 {[%clk 0:00:59]}  Ra2 {[%clk 0:00:50]} 29. c4 {[%clk 0:00:57]}  Ba8 {[%clk 0:00:49]} 30. Qe3 {[%clk 0:00:49]}  Qc8 {[%clk 0:00:22]} 31. Ne4 {[%clk 0:00:38]}  Nxe4 {[%clk 0:00:18]} 32. Bxg7+ {[%clk 0:00:37]}  Ke8 {[%clk 0:00:15]} 33. Bxe4 {[%clk 0:00:34]}  Bxg5 {[%clk 0:00:16]} 34. Qxg5 {[%clk 0:00:34]}  Rg8 {[%clk 0:00:15]} 35. Qb5+ {[%clk 0:00:15]}  Ke7 {[%clk 0:00:14]} 36. Qg5+ {[%clk 0:00:12]}  Kd7 {[%clk 0:00:09]} 37. Bxa8 {[%clk 0:00:10]}  Qxa8 {[%clk 0:00:08]} 38. Qb5+ {[%clk 0:00:06]}  Qc6 {[%clk 0:00:06]} 39. Qxc6+ {[%clk 0:00:06]}  Kxc6 {[%clk 0:00:07]} 40. Bc3 {[%clk 0:00:06]}  Rg4 {[%clk 0:00:06]} 41. f4 {[%clk 0:00:06]}  Rg8 {[%clk 0:00:05]} 42. Kf2 {[%clk 0:00:07]}  Rd8 {[%clk 0:00:05]} 43. Kf3 {[%clk 0:00:07]}  Rd3+ {[%clk 0:00:05]} 44. Kg4 {[%clk 0:00:07]}  Rxc3 {[%clk 0:00:05]} 45. dxc3 {[%clk 0:00:08]}  Rxh2 {[%clk 0:00:05]} 46. Ra1 {[%clk 0:00:07]}  Kb6 {[%clk 0:00:05]} 47. Kg5 {[%clk 0:00:05]}  Rg2 {[%clk 0:00:05]} 48. Kg4 {[%clk 0:00:05]}  h2 {[%clk 0:00:05]} 49. Rh1 {[%clk 0:00:06]}  Rc2 {[%clk 0:00:04]} 50. Rxh2 {[%clk 0:00:06]}  Rxh2 {[%clk 0:00:04]} 51. Kg5 {[%clk 0:00:06]}  Rg2 {[%clk 0:00:04]} 52. g4 {[%clk 0:00:06]}  f5 {[%clk 0:00:04]} 0-1


[Site "https://www.chess.com"]

[Event "Titled Tuesday Blitz May 24 Early 2022"]
[White "Martin Carmona, Gaston Manuel"]
[Black "Djokic, Mihailo"]
[WhiteFideId "22284567"]
[BlackFideId "976440"]
[WhiteElo "2162"]
[BlackElo "2202"]
[Result "0-1"]
[Round "05"]
[TimeControl "180+1"]
[Date "2022.05.25"]
[WhiteClock "0:00:04"]
[BlackClock "0:00:35"]

1. d4 {[%clk 0:03:00]}  Nf6 {[%clk 0:02:59]} 2. c4 {[%clk 0:03:00]}  g6 {[%clk 0:02:59]} 3. Nc3 {[%clk 0:03:01]}  Bg7 {[%clk 0:02:59]} 4. e4 {[%clk 0:03:01]}  d6 {[%clk 0:03:00]} 5. Nf3 {[%clk 0:03:01]}  O-O {[%clk 0:03:00]} 6. Be2 {[%clk 0:03:02]}  e5 {[%clk 0:03:01]} 7. dxe5 {[%clk 0:03:02]}  dxe5 {[%clk 0:03:01]} 8. Qxd8 {[%clk 0:03:03]}  Rxd8 {[%clk 0:03:01]} 9. Bg5 {[%clk 0:03:04]}  Re8 {[%clk 0:03:01]} 10. Nd5 {[%clk 0:03:04]}  Nxd5 {[%clk 0:03:02]} 11. cxd5 {[%clk 0:03:05]}  c6 {[%clk 0:03:02]} 12. Bc4 {[%clk 0:03:00]}  cxd5 {[%clk 0:03:01]} 13. Bxd5 {[%clk 0:03:01]}  Nd7 {[%clk 0:03:02]} 14. Nd2 {[%clk 0:02:57]}  Nc5 {[%clk 0:02:59]} 15. O-O-O {[%clk 0:02:22]}  Be6 {[%clk 0:02:24]} 16. Bxe6 {[%clk 0:02:16]}  Rxe6 {[%clk 0:02:25]} 17. Be3 {[%clk 0:02:10]}  Nd3+ {[%clk 0:02:15]} 18. Kb1 {[%clk 0:02:09]}  f5 {[%clk 0:02:13]} 19. f3 {[%clk 0:01:37]}  f4 {[%clk 0:02:12]} 20. Nc4 {[%clk 0:01:37]}  Nb4 {[%clk 0:01:54]} 21. Bc5 {[%clk 0:01:21]}  Na6 {[%clk 0:01:44]} 22. Ba3 {[%clk 0:01:13]}  b5 {[%clk 0:01:42]} 23. Rd6 {[%clk 0:00:29]}  Rxd6 {[%clk 0:01:38]} 24. Nxd6 {[%clk 0:00:30]}  b4 {[%clk 0:01:38]} 25. Rc1 {[%clk 0:00:31]}  bxa3 {[%clk 0:01:38]} 26. Rc6 {[%clk 0:00:31]}  Nb4 {[%clk 0:01:35]} 27. Rc4 {[%clk 0:00:31]}  Rb8 {[%clk 0:01:33]} 28. bxa3 {[%clk 0:00:29]}  Nd3+ {[%clk 0:01:27]} 29. Kc2 {[%clk 0:00:29]}  Ne1+ {[%clk 0:01:27]} 30. Kd2 {[%clk 0:00:26]}  Nxg2 {[%clk 0:01:27]} 31. Rc7 {[%clk 0:00:24]}  Bf8 {[%clk 0:01:26]} 32. Nf7 {[%clk 0:00:23]}  Rb2+ {[%clk 0:01:22]} 33. Kc3 {[%clk 0:00:23]}  Rxa2 {[%clk 0:01:21]} 34. Nxe5 {[%clk 0:00:20]}  Ne1 {[%clk 0:01:08]} 35. Ng4 {[%clk 0:00:19]}  Bg7+ {[%clk 0:01:02]} 36. Kb3 {[%clk 0:00:16]}  Rb2+ {[%clk 0:01:01]} 37. Ka4 {[%clk 0:00:16]}  Nxf3 {[%clk 0:00:59]} 38. Rc8+ {[%clk 0:00:16]}  Kf7 {[%clk 0:00:59]} 39. Rc7+ {[%clk 0:00:16]}  Kf8 {[%clk 0:00:59]} 40. Rc8+ {[%clk 0:00:16]}  Ke7 {[%clk 0:00:54]} 41. Rc7+ {[%clk 0:00:17]}  Kd6 {[%clk 0:00:53]} 42. Rxg7 {[%clk 0:00:17]}  Nxh2 {[%clk 0:00:43]} 43. Nf6 {[%clk 0:00:13]}  f3 {[%clk 0:00:38]} 44. Rxh7 {[%clk 0:00:04]}  f2 {[%clk 0:00:36]} 45. Rxh2 {[%clk 0:00:04]}  f1=Q {[%clk 0:00:35]} 46. Rxb2 {[%clk 0:00:04]} 0-1


[Site "https://www.chess.com"]

[Event "Titled Tuesday Blitz May 24 Early 2022"]
[White "Martin, Lewis"]
[Black "Aggelis, Nikolaos"]
[WhiteFideId "410551"]
[BlackFideId "4213220"]
[WhiteElo "2145"]
[BlackElo "2154"]
[Result "1-0"]
[Round "05"]
[TimeControl "180+1"]
[Date "2022.05.25"]
[WhiteClock "0:01:11"]
[BlackClock "0:01:10"]

1. e4 {[%clk 0:03:00]}  e5 {[%clk 0:02:44]} 2. Nf3 {[%clk 0:03:00]}  Nc6 {[%clk 0:02:40]} 3. Bb5 {[%clk 0:03:00]}  a6 {[%clk 0:02:39]} 4. Ba4 {[%clk 0:03:00]}  Nf6 {[%clk 0:02:34]} 5. O-O {[%clk 0:02:59]}  Be7 {[%clk 0:02:33]} 6. Re1 {[%clk 0:02:59]}  b5 {[%clk 0:02:34]} 7. Bb3 {[%clk 0:02:58]}  O-O {[%clk 0:02:34]} 8. a4 {[%clk 0:02:56]}  b4 {[%clk 0:02:34]} 9. d3 {[%clk 0:02:51]}  d6 {[%clk 0:02:34]} 10. h3 {[%clk 0:02:48]}  Na5 {[%clk 0:02:31]} 11. Ba2 {[%clk 0:02:47]}  Be6 {[%clk 0:02:30]} 12. Bxe6 {[%clk 0:02:45]}  fxe6 {[%clk 0:02:31]} 13. Nbd2 {[%clk 0:02:44]}  c5 {[%clk 0:02:31]} 14. Nf1 {[%clk 0:02:43]}  Nc6 {[%clk 0:02:27]} 15. c3 {[%clk 0:02:39]}  a5 {[%clk 0:02:27]} 16. d4 {[%clk 0:02:36]}  exd4 {[%clk 0:02:22]} 17. cxd4 {[%clk 0:02:35]}  e5 {[%clk 0:02:23]} 18. dxe5 {[%clk 0:02:22]}  dxe5 {[%clk 0:02:21]} 19. Bg5 {[%clk 0:02:21]}  h6 {[%clk 0:01:57]} 20. Bxf6 {[%clk 0:02:18]}  Bxf6 {[%clk 0:01:56]} 21. Ne3 {[%clk 0:02:19]}  Nd4 {[%clk 0:01:55]} 22. Nd5 {[%clk 0:02:13]}  Qd6 {[%clk 0:01:53]} 23. Nd2 {[%clk 0:02:01]}  Rad8 {[%clk 0:01:47]} 24. Nc4 {[%clk 0:02:01]}  Qa6 {[%clk 0:01:47]} 25. Rc1 {[%clk 0:01:55]}  Kh8 {[%clk 0:01:43]} 26. Re3 {[%clk 0:01:48]}  Bg5 {[%clk 0:01:41]} 27. Nxe5 {[%clk 0:01:41]}  Bxe3 {[%clk 0:01:35]} 28. fxe3 {[%clk 0:01:37]}  Ne2+ {[%clk 0:01:35]} 29. Kh2 {[%clk 0:01:31]}  Nxc1 {[%clk 0:01:36]} 30. Qxc1 {[%clk 0:01:30]}  Qd6 {[%clk 0:01:34]} 31. Nf4 {[%clk 0:01:27]}  Kh7 {[%clk 0:01:28]} 32. Neg6 {[%clk 0:01:24]}  Rfe8 {[%clk 0:01:25]} 33. Qc2 {[%clk 0:01:16]}  Qd2 {[%clk 0:01:10]} 34. Qxc5 {[%clk 0:01:12]}  Qxe3 {[%clk 0:01:10]} 35. Qxe3 {[%clk 0:01:11]} 1-0


[Site "https://www.chess.com"]

[Event "Titled Tuesday Blitz May 24 Early 2022"]
[White "Mikhalsky, Vladimir"]
[Black "Shevtchenko, Olesya"]
[WhiteFideId "14144352"]
[BlackFideId "24131890"]
[WhiteElo "2301"]
[BlackElo "2003"]
[Result "1-0"]
[Round "05"]
[TimeControl "180+1"]
[Date "2022.05.25"]
[WhiteClock "0:00:35"]
[BlackClock "0:00:12"]

1. d4 {[%clk 0:02:59]}  d5 {[%clk 0:02:59]} 2. c4 {[%clk 0:02:58]}  e6 {[%clk 0:02:59]} 3. Nf3 {[%clk 0:02:57]}  Nf6 {[%clk 0:02:59]} 4. g3 {[%clk 0:02:57]}  Be7 {[%clk 0:02:58]} 5. Bg2 {[%clk 0:02:57]}  O-O {[%clk 0:02:59]} 6. O-O {[%clk 0:02:58]}  dxc4 {[%clk 0:02:59]} 7. Ne5 {[%clk 0:02:56]}  Nc6 {[%clk 0:02:58]} 8. Nxc6 {[%clk 0:02:46]}  bxc6 {[%clk 0:02:59]} 9. Na3 {[%clk 0:02:34]}  Bxa3 {[%clk 0:02:58]} 10. bxa3 {[%clk 0:02:34]}  Ba6 {[%clk 0:02:54]} 11. a4 {[%clk 0:02:23]}  Qd6 {[%clk 0:02:36]} 12. e4 {[%clk 0:02:15]}  e5 {[%clk 0:02:32]} 13. dxe5 {[%clk 0:02:09]}  Qxe5 {[%clk 0:02:33]} 14. Bf4 {[%clk 0:02:09]}  Qa5 {[%clk 0:02:26]} 15. Rc1 {[%clk 0:01:53]}  Rfd8 {[%clk 0:02:18]} 16. Qc2 {[%clk 0:01:40]}  Rab8 {[%clk 0:01:59]} 17. Rfd1 {[%clk 0:01:34]}  h6 {[%clk 0:01:50]} 18. Bd2 {[%clk 0:01:23]}  Qb6 {[%clk 0:01:36]} 19. Bc3 {[%clk 0:01:21]}  Re8 {[%clk 0:01:17]} 20. Bxf6 {[%clk 0:01:00]}  gxf6 {[%clk 0:01:15]} 21. Bf1 {[%clk 0:00:57]}  Qb2 {[%clk 0:00:43]} 22. Bxc4 {[%clk 0:00:56]}  Qxc2 {[%clk 0:00:37]} 23. Rxc2 {[%clk 0:00:56]}  Bxc4 {[%clk 0:00:35]} 24. Rxc4 {[%clk 0:00:56]}  Rb2 {[%clk 0:00:34]} 25. Rd7 {[%clk 0:00:50]}  Rxa2 {[%clk 0:00:31]} 26. Rxc7 {[%clk 0:00:50]}  Rb8 {[%clk 0:00:24]} 27. R7xc6 {[%clk 0:00:46]}  Rb1+ {[%clk 0:00:22]} 28. Kg2 {[%clk 0:00:45]}  Rbb2 {[%clk 0:00:22]} 29. Rxf6 {[%clk 0:00:45]}  Kg7 {[%clk 0:00:21]} 30. e5 {[%clk 0:00:42]}  Re2 {[%clk 0:00:16]} 31. Rg4+ {[%clk 0:00:38]}  Kf8 {[%clk 0:00:15]} 32. Rgf4 {[%clk 0:00:35]}  Rxe5 {[%clk 0:00:12]} 33. Rxf7+ {[%clk 0:00:35]}  Kg8 {[%clk 0:00:12]} 34. Rxa7 {[%clk 0:00:35]} 1-0


[Site "https://www.chess.com"]

[Event "Titled Tuesday Blitz May 24 Early 2022"]
[White "Nogerbek, Kazybek"]
[Black "Swiercz, Dariusz"]
[WhiteFideId "13710427"]
[BlackFideId "1126881"]
[WhiteElo "2441"]
[BlackElo "2627"]
[Result "1/2-1/2"]
[Round "05"]
[TimeControl "180+1"]
[Date "2022.05.24"]
[WhiteClock "0:02:11"]
[BlackClock "0:00:37"]

1. Nf3 {[%clk 0:03:00]}  Nf6 {[%clk 0:02:47]} 2. c4 {[%clk 0:03:00]}  e6 {[%clk 0:02:46]} 3. Nc3 {[%clk 0:03:00]}  Bb4 {[%clk 0:02:45]} 4. Qb3 {[%clk 0:02:56]}  c5 {[%clk 0:02:42]} 5. a3 {[%clk 0:02:56]}  Ba5 {[%clk 0:02:43]} 6. g3 {[%clk 0:02:51]}  Nc6 {[%clk 0:02:42]} 7. Bg2 {[%clk 0:02:51]}  O-O {[%clk 0:02:42]} 8. O-O {[%clk 0:02:52]}  d6 {[%clk 0:02:37]} 9. Rd1 {[%clk 0:02:48]}  e5 {[%clk 0:02:37]} 10. d3 {[%clk 0:02:46]}  Rb8 {[%clk 0:02:32]} 11. Bg5 {[%clk 0:02:46]}  Bxc3 {[%clk 0:02:23]} 12. Qxc3 {[%clk 0:02:47]}  Nd4 {[%clk 0:02:15]} 13. Nxd4 {[%clk 0:02:46]}  exd4 {[%clk 0:02:15]} 14. Qc2 {[%clk 0:02:40]}  h6 {[%clk 0:02:14]} 15. Bf4 {[%clk 0:02:41]}  Re8 {[%clk 0:02:12]} 16. Re1 {[%clk 0:02:41]}  b6 {[%clk 0:02:07]} 17. e4 {[%clk 0:02:41]}  dxe3 {[%clk 0:02:07]} 18. Rxe3 {[%clk 0:02:40]}  Rxe3 {[%clk 0:02:04]} 19. Bxe3 {[%clk 0:02:41]}  Bb7 {[%clk 0:02:04]} 20. d4 {[%clk 0:02:39]}  Bxg2 {[%clk 0:02:02]} 21. Kxg2 {[%clk 0:02:40]}  Qd7 {[%clk 0:01:55]} 22. Rd1 {[%clk 0:02:35]}  Re8 {[%clk 0:01:54]} 23. dxc5 {[%clk 0:02:32]}  Qc6+ {[%clk 0:01:54]} 24. Kg1 {[%clk 0:02:32]}  dxc5 {[%clk 0:01:54]} 25. Qf5 {[%clk 0:02:22]}  Qe6 {[%clk 0:00:59]} 26. Qxe6 {[%clk 0:02:22]}  fxe6 {[%clk 0:00:59]} 27. b4 {[%clk 0:02:18]}  cxb4 {[%clk 0:00:55]} 28. axb4 {[%clk 0:02:19]}  Rc8 {[%clk 0:00:55]} 29. c5 {[%clk 0:02:18]}  Nd5 {[%clk 0:00:53]} 30. cxb6 {[%clk 0:02:18]}  axb6 {[%clk 0:00:53]} 31. b5 {[%clk 0:02:12]}  Nxe3 {[%clk 0:00:46]} 32. fxe3 {[%clk 0:02:12]}  Rc5 {[%clk 0:00:47]} 33. Rd6 {[%clk 0:02:13]}  Rxb5 {[%clk 0:00:47]} 34. Rxe6 {[%clk 0:02:14]}  Kf7 {[%clk 0:00:48]} 35. Rc6 {[%clk 0:02:14]}  Rb2 {[%clk 0:00:48]} 36. e4 {[%clk 0:02:14]}  b5 {[%clk 0:00:47]} 37. e5 {[%clk 0:02:14]}  b4 {[%clk 0:00:47]} 38. Rb6 {[%clk 0:02:14]}  b3 {[%clk 0:00:47]} 39. h4 {[%clk 0:02:13]}  h5 {[%clk 0:00:47]} 40. Kf1 {[%clk 0:02:13]}  Rb1+ {[%clk 0:00:42]} 41. Kg2 {[%clk 0:02:13]}  g6 {[%clk 0:00:39]} 42. Kh2 {[%clk 0:02:12]}  b2 {[%clk 0:00:39]} 43. Kg2 {[%clk 0:02:12]}  Ke7 {[%clk 0:00:39]} 44. e6 {[%clk 0:02:10]}  Kf6 {[%clk 0:00:38]} 45. Kh2 {[%clk 0:02:10]}  Ke7 {[%clk 0:00:36]} 46. Kg2 {[%clk 0:02:10]}  Kf6 {[%clk 0:00:36]} 47. Kh2 {[%clk 0:02:11]}  Ke7 {[%clk 0:00:37]} 48. Kg2 {[%clk 0:02:11]} 1/2-1/2


[Site "https://www.chess.com"]

[Event "Titled Tuesday Blitz May 24 Early 2022"]
[White "Ovezdurdyyeva, Jemal"]
[Black "Turutin, Alexander"]
[WhiteFideId "14001888"]
[BlackFideId "4180623"]
[WhiteElo "1946"]
[BlackElo "2402"]
[Result "0-1"]
[Round "05"]
[TimeControl "180+1"]
[Date "2022.05.25"]
[WhiteClock "0:00:01"]
[BlackClock "0:00:07"]

1. e4 {[%clk 0:03:00]}  c6 {[%clk 0:02:56]} 2. d4 {[%clk 0:02:59]}  d5 {[%clk 0:02:57]} 3. Nd2 {[%clk 0:02:59]}  dxe4 {[%clk 0:02:51]} 4. Nxe4 {[%clk 0:03:00]}  Nf6 {[%clk 0:02:51]} 5. Ng3 {[%clk 0:02:59]}  c5 {[%clk 0:02:49]} 6. N1e2 {[%clk 0:02:53]}  Nc6 {[%clk 0:02:38]} 7. Be3 {[%clk 0:02:50]}  Nd5 {[%clk 0:02:23]} 8. dxc5 {[%clk 0:02:20]}  Qa5+ {[%clk 0:02:13]} 9. Qd2 {[%clk 0:01:43]}  Nxe3 {[%clk 0:02:02]} 10. fxe3 {[%clk 0:01:41]}  Qxc5 {[%clk 0:02:01]} 11. O-O-O {[%clk 0:01:36]}  Bg4 {[%clk 0:01:15]} 12. h3 {[%clk 0:01:32]}  Rd8 {[%clk 0:01:09]} 13. Qc3 {[%clk 0:01:15]}  Rxd1+ {[%clk 0:01:04]} 14. Kxd1 {[%clk 0:01:16]}  Qxc3 {[%clk 0:01:04]} 15. bxc3 {[%clk 0:01:14]}  Be6 {[%clk 0:01:01]} 16. a4 {[%clk 0:01:11]}  Bd7 {[%clk 0:00:53]} 17. Nf4 {[%clk 0:01:03]}  e6 {[%clk 0:00:50]} 18. Ne4 {[%clk 0:00:53]}  Be7 {[%clk 0:00:48]} 19. Bd3 {[%clk 0:00:47]}  Kd8 {[%clk 0:00:43]} 20. Ke2 {[%clk 0:00:46]}  Kc7 {[%clk 0:00:43]} 21. Rf1 {[%clk 0:00:41]}  Ne5 {[%clk 0:00:42]} 22. Bb5 {[%clk 0:00:34]}  Bxb5+ {[%clk 0:00:23]} 23. axb5 {[%clk 0:00:35]}  Rf8 {[%clk 0:00:19]} 24. Nd3 {[%clk 0:00:26]}  Nc4 {[%clk 0:00:19]} 25. Nd2 {[%clk 0:00:26]}  Nxd2 {[%clk 0:00:16]} 26. Kxd2 {[%clk 0:00:27]}  f6 {[%clk 0:00:16]} 27. Rf4 {[%clk 0:00:25]}  Bd6 {[%clk 0:00:11]} 28. Rg4 {[%clk 0:00:23]}  g5 {[%clk 0:00:11]} 29. Ra4 {[%clk 0:00:23]}  Kb6 {[%clk 0:00:11]} 30. c4 {[%clk 0:00:23]}  Rc8 {[%clk 0:00:11]} 31. Kc3 {[%clk 0:00:21]}  Bc5 {[%clk 0:00:12]} 32. Nxc5 {[%clk 0:00:19]}  Rxc5 {[%clk 0:00:12]} 33. Ra1 {[%clk 0:00:19]}  Rf5 {[%clk 0:00:12]} 34. Rd1 {[%clk 0:00:18]}  Kc7 {[%clk 0:00:13]} 35. Rd2 {[%clk 0:00:17]}  h5 {[%clk 0:00:12]} 36. Kb4 {[%clk 0:00:17]}  b6 {[%clk 0:00:12]} 37. Re2 {[%clk 0:00:15]}  h4 {[%clk 0:00:11]} 38. e4 {[%clk 0:00:14]}  Rf1 {[%clk 0:00:10]} 39. Kc3 {[%clk 0:00:12]}  Kd6 {[%clk 0:00:08]} 40. Rd2+ {[%clk 0:00:11]}  Ke5 {[%clk 0:00:09]} 41. Rd7 {[%clk 0:00:11]}  Ra1 {[%clk 0:00:09]} 42. Re7 {[%clk 0:00:10]}  Ra2 {[%clk 0:00:08]} 43. Kb3 {[%clk 0:00:10]}  Ra1 {[%clk 0:00:09]} 44. Kc3 {[%clk 0:00:10]}  Kxe4 {[%clk 0:00:07]} 45. Rxe6+ {[%clk 0:00:09]}  Kf5 {[%clk 0:00:08]} 46. Rc6 {[%clk 0:00:09]}  Ke5 {[%clk 0:00:08]} 47. c5 {[%clk 0:00:09]}  bxc5 {[%clk 0:00:09]} 48. Rxc5+ {[%clk 0:00:09]}  Kf4 {[%clk 0:00:09]} 49. Rc6 {[%clk 0:00:08]}  f5 {[%clk 0:00:09]} 50. Rf6 {[%clk 0:00:09]}  Rg1 {[%clk 0:00:08]} 51. Rf8 {[%clk 0:00:08]}  Rxg2 {[%clk 0:00:08]} 52. Rf7 {[%clk 0:00:08]}  g4 {[%clk 0:00:08]} 53. hxg4 {[%clk 0:00:07]}  Rxg4 {[%clk 0:00:09]} 54. Rxa7 {[%clk 0:00:08]}  h3 {[%clk 0:00:08]} 55. b6 {[%clk 0:00:07]}  h2 {[%clk 0:00:06]} 56. Rh7 {[%clk 0:00:06]}  Kg3 {[%clk 0:00:07]} 57. b7 {[%clk 0:00:05]}  Rg8 {[%clk 0:00:07]} 58. Kc4 {[%clk 0:00:05]}  f4 {[%clk 0:00:07]} 59. Kc5 {[%clk 0:00:05]}  f3 {[%clk 0:00:07]} 60. Kb6 {[%clk 0:00:01]}  f2 {[%clk 0:00:07]} 0-1


[Site "https://www.chess.com"]